bitfinex-derivatives/quotes_BTCF0:USTF0_20241005
["timestamp","ask_amount","ask_price","bid_price","bid_amount"]
[1728162829144,0.15061861,61866.0,61865.0,0.10121873]
[1728162830256,0.17512483,61866.0,61865.0,0.10121873]
[1728162830439,0.29554344,61866.0,61865.0,0.10121873]
[1728162831547,0.07080499,61866.0,61865.0,0.10121873]
[1728162834351,0.0324,61868.0,61865.0,0.03655873]
[1728162834559,0.0324,61868.0,61867.0,0.174658]
[1728162835749,0.98641201,61872.0,61869.0,0.064655]
[1728162835953,0.985452,61872.0,61871.0,0.11]
[1728162836859,0.425452,61872.0,61871.0,0.11]
[1728162839360,0.3608,61872.0,61871.0,0.174653]
[1728162840450,0.0326,61877.0,61871.0,0.11]
[1728162840654,0.429238,61887.0,61868.0,0.3608]
[1728162840655,0.653,61886.0,61876.0,0.11]
[1728162840855,0.653,61886.0,61885.0,0.11]
[1728162841057,0.717638,61886.0,61885.0,0.11]
[1728162842571,0.78842773,61886.0,61885.0,0.11]
[1728162842754,0.78842773,61886.0,61885.0,0.113]
[1728162843360,0.78842773,61886.0,61885.0,0.116]
[1728162843570,0.78842773,61886.0,61885.0,0.180639]
[1728162843769,0.19792773,61886.0,61885.0,0.180639]
[1728162843971,0.03121601,61886.0,61885.0,0.180639]
[1728162845165,0.064632,61892.0,61889.0,0.064634]
[1728162845368,0.03121172,61891.0,61889.0,0.064634]
[1728162845564,0.064632,61892.0,61890.0,0.11]
[1728162845769,0.0312117,61891.0,61890.0,0.11]
[1728162846269,0.064632,61891.0,61890.0,0.11]
[1728162847078,0.0991,61895.0,61890.0,0.11]
[1728162847079,0.163729,61895.0,61890.0,0.11]
[1728162847260,0.03121166,61894.0,61890.0,0.005]
[1728162847579,0.064632,61891.0,61890.0,0.005]
[1728162848275,0.064632,61891.0,61890.0,0.001]
[1728162848570,0.064632,61891.0,61890.0,0.006]
[1728162849971,0.064632,61891.0,61890.0,0.01]
[1728162851567,0.064632,61891.0,61890.0,0.12]
[1728162854260,0.064632,61891.0,61890.0,0.184634]
[1728162855964,0.56,61894.0,61893.0,0.06463]
[1728162856161,0.0991,61895.0,61894.0,0.064629]
[1728162856970,0.033,61895.0,61894.0,0.064629]
[1728162857175,0.3608,61899.0,61898.0,0.064625]
[1728162857475,0.3608,61899.0,61898.0,0.174625]
[1728162857671,0.00242423,61900.0,61899.0,0.064624]
[1728162859376,0.00242423,61900.0,61899.0,0.066624]
[1728162859675,0.00242423,61900.0,61899.0,0.068624]
[1728162860879,0.56096001,61902.0,61899.0,0.068624]
[1728162860880,0.00096001,61902.0,61901.0,0.064622]
[1728162861079,0.0308,61905.0,61902.0,0.06462]
[1728162861386,0.3608,61906.0,61905.0,0.064618]
[1728162861775,0.064615,61909.0,61906.0,0.064616]
[1728162861981,0.064615,61909.0,61908.0,0.11]
[1728162863087,0.064615,61909.0,61908.0,0.174615]
[1728162863288,0.0325,61911.0,61909.0,0.064613]
[1728162863676,0.0325,61911.0,61910.0,0.064613]
[1728162864275,0.425409,61914.0,61908.0,0.122]
[1728162864587,0.425409,61914.0,61913.0,0.11]
[1728162864789,0.54575014,61914.0,61913.0,0.05354703]
[1728162866079,0.54575014,61914.0,61913.0,0.08154703]
[1728162866080,0.54574864,61914.0,61913.0,0.08154703]
[1728162866287,0.69044637,61914.0,61913.0,0.08154703]
[1728162867401,0.69048201,61914.0,61913.0,0.08154703]
[1728162867778,0.13536753,61914.0,61913.0,0.11107774]
[1728162867983,0.07075853,61914.0,61913.0,0.11107774]
[1728162868392,0.07075448,61914.0,61913.0,0.11107774]
[1728162869082,0.07075448,61914.0,61913.0,0.09707774]
[1728162869288,0.07075448,61914.0,61913.0,0.11107774]
[1728162869289,0.03120225,61914.0,61913.0,0.11107774]
[1728162869687,0.03120225,61914.0,61913.0,0.05753071]
[1728162869993,0.03120225,61914.0,61913.0,0.16753071]
[1728162871283,0.03120225,61914.0,61913.0,0.05753071]
[1728162871682,0.09581025,61914.0,61913.0,0.05753071]
[1728162871891,0.09581025,61914.0,61913.0,0.16753071]
[1728162872591,0.064606,61916.0,61913.0,0.138]
[1728162873100,0.3646,61922.0,61913.0,0.138]
[1728162873101,0.064608,61914.0,61913.0,0.138]
[1728162873691,0.064608,61914.0,61913.0,0.124]
[1728162873889,0.064608,61914.0,61913.0,0.138]
[1728162875207,0.064608,61914.0,61913.0,0.124]
[1728162875403,0.064608,61914.0,61913.0,0.138]
[1728162876501,0.064608,61914.0,61913.0,0.028]
[1728162876806,0.064608,61914.0,61913.0,0.138]
[1728162880806,0.064608,61914.0,61913.0,0.028]
[1728162882605,0.549168,61914.0,61913.0,0.028]
[1728162884518,0.064608,61914.0,61913.0,0.028]
[1728162885114,0.174608,61914.0,61913.0,0.028]
[1728162885311,0.659168,61914.0,61913.0,0.028]
[1728162885514,0.549168,61914.0,61913.0,0.028]
[1728162886019,0.064608,61914.0,61913.0,0.028]
[1728162887503,0.09580945,61914.0,61913.0,0.028]
[1728162887904,0.20580945,61914.0,61913.0,0.028]
[1728162888413,0.72992512,61914.0,61913.0,0.028]
[1728162888914,0.064614,61909.0,61908.0,0.0113]
[1728162889112,0.064614,61909.0,61907.0,0.11]
[1728162889113,0.064615,61908.0,61907.0,0.11]
[1728162889314,0.12681752,61908.0,61907.0,0.11]
[1728162890923,0.06220252,61908.0,61904.0,0.4708]
[1728162891219,0.06220252,61908.0,61906.0,0.11]
[1728162891220,0.09581852,61907.0,61906.0,0.11]
[1728162891614,0.064618,61905.0,61904.0,0.4708]
[1728162891821,0.09582052,61905.0,61904.0,0.4708]
[1728162892016,0.09582052,61905.0,61904.0,0.4848]
[1728162892615,0.09582052,61905.0,61904.0,0.4708]
[1728162892810,0.09582052,61905.0,61904.0,0.3608]
[1728162893017,0.12682052,61905.0,61904.0,0.3608]
[1728162893417,0.12682052,61905.0,61904.0,0.4708]
[1728162893615,0.16637876,61905.0,61904.0,0.4708]
[1728162894220,0.16637876,61905.0,61904.0,0.4848]
[1728162894630,0.096618,61905.0,61904.0,0.4988]
[1728162896229,0.096618,61905.0,61904.0,0.3888]
[1728162897025,0.656618,61905.0,61904.0,0.3888]
[1728162899026,1.141218,61905.0,61904.0,0.028]
[1728162899623,1.741218,61905.0,61904.0,0.028]
[1728162900036,1.741218,61905.0,61899.0,0.0113]
[1728162900233,0.11,61900.0,61895.0,0.0151]
[1728162900437,0.06463,61893.0,61892.0,0.0151]
[1728162900641,0.11,61896.0,61891.0,0.17705467]
[1728162900642,0.064631,61892.0,61891.0,0.17705467]
[1728162902036,0.067631,61892.0,61891.0,0.17805467]
[1728162902239,0.177631,61892.0,61891.0,0.00342267]
[1728162903033,0.22284212,61892.0,61891.0,0.00342267]
[1728162904840,0.58364212,61892.0,61891.0,0.00342267]
[1728162905340,1.66836212,61892.0,61891.0,0.00342267]
[1728162905637,1.66836212,61892.0,61885.0,0.0151]
[1728162905638,0.064638,61886.0,61885.0,0.0151]
[1728162905842,0.064638,61886.0,61880.0,0.0409]
[1728162905843,0.064641,61883.0,61882.0,0.11]
[1728162907034,0.064641,61883.0,61882.0,0.111]
[1728162907035,0.073641,61883.0,61882.0,0.111]
[1728162907736,0.082641,61883.0,61882.0,0.111]
[1728162909342,0.192641,61883.0,61882.0,0.001]
[1728162912736,0.194641,61883.0,61882.0,0.001]
[1728162913049,0.064648,61876.0,61875.0,0.0151]
[1728162913239,0.756641,61883.0,61873.0,0.208991]
[1728162913240,0.064649,61875.0,61873.0,0.208991]
[1728162913440,0.064649,61875.0,61873.0,0.207151]
[1728162914748,0.06465,61874.0,61873.0,0.1425]
[1728162916649,0.07265,61874.0,61873.0,0.1425]
[1728162917742,0.07265,61874.0,61871.0,0.064652]
[1728162917743,0.064651,61873.0,61871.0,0.064652]
[1728162919050,0.071651,61873.0,61871.0,0.064652]
[1728162919653,0.181651,61873.0,61871.0,0.064652]
[1728162919956,0.188651,61873.0,61871.0,0.064652]
[1728162920147,0.188651,61873.0,61867.0,0.3608]
[1728162920353,0.188651,61873.0,61869.0,0.064655]
[1728162920649,0.188651,61873.0,61867.0,0.3608]
[1728162921561,0.188651,61873.0,61865.0,0.0151]
[1728162923445,0.194651,61873.0,61865.0,0.0151]
[1728162925447,0.194651,61873.0,61865.0,0.06358463]
[1728162926547,0.194651,61873.0,61866.0,0.04848463]
[1728162928458,0.064653,61872.0,61871.0,0.11]
[1728162928653,0.02,61873.0,61871.0,0.15848463]
[1728162928953,0.02,61873.0,61871.0,0.11]
[1728162929359,0.084651,61873.0,61872.0,0.04848463]
[1728162929553,0.074651,61873.0,61872.0,0.04848463]
[1728162929943,0.064651,61873.0,61872.0,0.04848463]
[1728162930259,0.4708,61877.0,61871.0,0.15848463]
[1728162930451,0.064652,61872.0,61871.0,0.15848463]
[1728162930652,0.064652,61872.0,61871.0,0.15827025]
[1728162931161,0.064652,61872.0,61871.0,0.11]
[1728162931551,0.073652,61872.0,61871.0,0.11]
[1728162932153,0.082652,61872.0,61871.0,0.11]
[1728162933849,0.082652,61872.0,61870.0,0.02941995]
[1728162933850,0.064653,61871.0,61870.0,0.02941995]
[1728162934049,0.064653,61871.0,61867.0,0.205557]
[1728162934050,0.064656,61869.0,61867.0,0.205557]
[1728162934448,0.064657,61868.0,61867.0,0.205557]
[1728162936256,0.069657,61868.0,61867.0,0.23447265]
[1728162936761,0.074657,61868.0,61867.0,0.23447265]
[1728162939662,0.074657,61868.0,61867.0,0.16981565]
[1728162939960,0.10587948,61868.0,61867.0,0.16981565]
[1728162941463,0.10587948,61868.0,61867.0,0.23447365]
[1728162944060,0.04122248,61868.0,61867.0,0.23447365]
[1728162944260,0.01,61868.0,61867.0,0.23447365]
[1728162944466,0.04122173,61868.0,61867.0,0.23447365]
[1728162947875,0.01,61868.0,61867.0,0.23447365]
[1728162954362,0.01,61868.0,61867.0,0.12447365]
[1728162954562,0.01,61868.0,61867.0,0.23447365]
[1728162954969,0.04122051,61868.0,61867.0,0.23447365]
[1728162956673,0.04122051,61868.0,61867.0,0.20357365]
[1728162962184,0.04122035,61868.0,61867.0,0.20357365]
[1728162962879,0.01,61868.0,61867.0,0.40250206]
[1728162963084,0.01,61868.0,61867.0,0.32152389]
[1728162963376,0.01,61868.0,61867.0,0.34679543]
[1728162965281,0.01,61868.0,61867.0,0.32152389]
[1728162965583,0.01,61868.0,61867.0,0.34679526]
[1728162967379,0.01,61868.0,61867.0,0.32152389]
[1728162967582,0.01,61868.0,61867.0,0.34679526]
[1728162968577,0.01,61868.0,61867.0,0.32152389]
[1728162968786,0.01,61868.0,61867.0,0.34679526]
[1728162968989,0.01,61868.0,61867.0,0.32152389]
[1728162969188,0.01,61868.0,61867.0,0.34679559]
[1728162969881,0.01,61868.0,61867.0,0.22884535]
[1728162975078,0.01,61868.0,61867.0,0.22884467]
[1728162976881,0.01,61868.0,61867.0,0.20357365]
[1728162977484,0.01,61868.0,61867.0,0.09357365]
[1728162977783,0.01,61868.0,61867.0,0.20357365]
[1728162977989,0.01,61868.0,61867.0,0.32144573]
[1728162978994,0.01,61868.0,61867.0,0.68224573]
[1728162982086,0.0301,61873.0,61867.0,0.68224573]
[1728162982283,0.0301,61873.0,61872.0,0.23921228]
[1728162982488,0.0301,61873.0,61872.0,0.174652]
[1728162983192,0.0351,61873.0,61872.0,0.174652]
[1728162983894,0.0501,61873.0,61872.0,0.174652]
[1728162987601,0.0501,61873.0,61872.0,0.23921581]
[1728162990795,0.02,61873.0,61872.0,1.259532]
[1728162991001,0.02,61873.0,61872.0,1.3655017]
[1728162991210,0.02,61873.0,61872.0,1.48320324]
[1728162991405,0.02,61873.0,61872.0,1.3655017]
[1728162991901,0.02,61873.0,61872.0,1.34023235]
[1728162992298,0.02,61873.0,61872.0,1.259532]
[1728162993002,0.05121641,61873.0,61872.0,1.259532]
[1728162994900,0.05121641,61873.0,61872.0,0.174652]
[1728162995095,0.05121641,61873.0,61872.0,0.064652]
[1728162995300,0.05121641,61873.0,61872.0,0.174652]
[1728162996301,0.05121641,61873.0,61872.0,0.064652]
[1728162996302,0.61957605,61873.0,61872.0,0.064652]
[1728162996506,0.65079246,61873.0,61872.0,0.064652]
[1728162996702,0.71309246,61873.0,61872.0,0.064652]
[1728162997203,0.15309246,61873.0,61872.0,0.064652]
[1728162998799,0.11351641,61873.0,61872.0,0.064652]
[1728163000004,0.0823,61873.0,61872.0,0.064652]
[1728163001600,0.0823,61873.0,61868.0,0.14535635]
[1728163001601,0.146952,61873.0,61868.0,0.14535635]
[1728163001793,0.11,61872.0,61871.0,0.06457542]
[1728163002000,0.67,61872.0,61870.0,0.06457542]
[1728163002701,0.67,61872.0,61869.0,0.12923042]
[1728163003403,0.679,61872.0,61869.0,0.12923042]
[1728163003606,0.687,61872.0,61869.0,0.12923042]
[1728163004105,0.684,61872.0,61869.0,0.12923042]
[1728163005608,0.683,61872.0,61869.0,0.12923042]
[1728163006601,0.683,61872.0,61869.0,0.064655]
[1728163006803,0.683,61872.0,61871.0,0.04842225]
[1728163007904,0.71422073,61872.0,61869.0,0.064655]
[1728163008110,0.03122073,61871.0,61869.0,0.064655]
[1728163008305,0.03122073,61870.0,61869.0,0.064655]
[1728163009413,0.03822073,61870.0,61869.0,0.064655]
[1728163010807,0.04422073,61870.0,61869.0,0.064655]
[1728163014916,0.04422073,61870.0,61866.0,0.52565916]
[1728163015112,0.013,61870.0,61867.0,0.06457542]
[1728163015511,0.013,61870.0,61867.0,0.12923242]
[1728163015911,0.01,61870.0,61867.0,0.12923242]
[1728163016213,0.01,61870.0,61869.0,0.064655]
[1728163017520,0.006,61870.0,61869.0,0.064655]
[1728163017716,0.005,61870.0,61869.0,0.064655]
[1728163017917,0.009,61870.0,61869.0,0.064655]
[1728163018223,0.009,61870.0,61869.0,0.12923042]
[1728163018518,0.011,61870.0,61869.0,0.12923042]
[1728163018715,0.011,61870.0,61869.0,0.064655]
[1728163018918,0.013,61870.0,61869.0,0.12923042]
[1728163019811,0.013,61870.0,61869.0,0.49003042]
[1728163020816,0.013,61870.0,61869.0,0.064655]
[1728163023320,0.013,61870.0,61869.0,0.06457542]
[1728163023524,0.013,61870.0,61868.0,0.06457542]
[1728163023725,0.013,61870.0,61869.0,0.06457542]
[1728163023917,0.013,61870.0,61868.0,0.06457542]
[1728163024724,0.012,61870.0,61869.0,0.06457542]
[1728163024917,0.011,61870.0,61869.0,0.06457542]
[1728163026027,0.012,61870.0,61869.0,0.06457542]
[1728163026619,0.006,61870.0,61869.0,0.06457542]
[1728163026927,0.013,61870.0,61869.0,0.06457542]
[1728163028022,0.013,61870.0,61869.0,0.23923042]
[1728163028418,0.013,61870.0,61869.0,0.174655]
[1728163030329,0.08379998,61870.0,61869.0,0.174655]
[1728163032432,0.08379998,61870.0,61866.0,0.39144151]
[1728163032722,0.08379998,61870.0,61866.0,0.45421951]
[1728163032723,0.07080051,61869.0,61866.0,0.45421951]
[1728163032932,0.013,61870.0,61866.0,0.45421951]
[1728163032933,0.07080051,61868.0,61866.0,0.45421951]
[1728163033126,0.03122076,61867.0,61866.0,0.45421951]
[1728163033332,0.03122076,61868.0,61866.0,0.45421951]
[1728163033535,0.07080098,61868.0,61866.0,0.09341951]
[1728163034428,0.004,61867.0,61866.0,0.09341951]
[1728163034627,0.03522076,61867.0,61866.0,0.09341951]
[1728163035824,0.03822076,61867.0,61866.0,0.09341951]
[1728163036024,0.03422076,61867.0,61866.0,0.09341951]
[1728163036421,0.07380052,61867.0,61866.0,0.09341951]
[1728163036930,0.03822076,61867.0,61866.0,0.09341951]
[1728163037426,0.03822047,61867.0,61866.0,0.09341951]
[1728163037637,0.03822047,61867.0,61866.0,0.45421951]
[1728163037826,0.04657936,61867.0,61866.0,0.45421951]
[1728163038131,0.007,61867.0,61866.0,0.65309671]
[1728163038317,0.007,61867.0,61866.0,0.29229671]
[1728163038523,0.007,61867.0,61866.0,0.65309671]
[1728163041329,0.007,61867.0,61866.0,0.29229671]
[1728163041635,0.007,61867.0,61866.0,0.65309671]
[1728163042439,0.007,61867.0,61866.0,0.65311649]
[1728163043636,0.007,61867.0,61866.0,0.17411986]
[1728163043833,0.007,61867.0,61866.0,0.09341951]
[1728163044035,0.007,61867.0,61866.0,0.17411986]
[1728163044638,0.007,61867.0,61866.0,0.65313271]
[1728163045336,0.03822085,61867.0,61866.0,0.09341951]
[1728163045537,0.03822085,61867.0,61866.0,0.45421951]
[1728163047137,0.03822085,61867.0,61866.0,0.09341951]
[1728163047536,0.03822085,61867.0,61866.0,0.45421951]
[1728163053345,0.007,61867.0,61866.0,0.45421951]
[1728163053547,0.007,61867.0,61866.0,0.09341951]
[1728163053754,0.007,61867.0,61866.0,0.45421951]
[1728163055447,0.007,61867.0,61866.0,0.09341951]
[1728163056037,0.007,61867.0,61866.0,0.45421951]
[1728163057947,0.007,61867.0,61866.0,0.09341951]
[1728163058143,0.007,61867.0,61866.0,0.45421951]
[1728163060446,0.038221,61867.0,61866.0,0.45421951]
[1728163060947,0.038221,61867.0,61866.0,0.09341951]
[1728163061149,0.038221,61867.0,61866.0,0.45421951]
[1728163062451,0.038221,61867.0,61866.0,0.09341951]
[1728163062752,0.038221,61867.0,61866.0,0.45421951]
[1728163063053,0.038221,61867.0,61866.0,0.38956151]
[1728163063347,0.038221,61867.0,61859.0,0.40788]
[1728163063348,0.064662,61863.0,61859.0,0.472546]
[1728163063550,0.038221,61867.0,61859.0,0.472546]
[1728163063551,0.11,61861.0,61859.0,0.3608]
[1728163063743,0.031221,61860.0,61859.0,0.3608]
[1728163064140,0.031221,61860.0,61859.0,0.39056126]
[1728163064353,0.095886,61860.0,61859.0,0.39056126]
[1728163064549,0.095886,61860.0,61859.0,0.39756126]
[1728163064949,0.095886,61860.0,61859.0,0.39356126]
[1728163065148,0.095886,61860.0,61859.0,0.39456126]
[1728163065353,0.095886,61860.0,61859.0,0.39156126]
[1728163067044,0.031221,61860.0,61859.0,0.39156126]
[1728163067249,0.11,61861.0,61859.0,0.39156126]
[1728163067449,0.11,61861.0,61860.0,0.06455566]
[1728163069961,0.174664,61861.0,61860.0,0.06455566]
[1728163070262,0.174664,61861.0,61860.0,0.0484111]
[1728163070461,0.064665,61860.0,61859.0,0.4092111]
[1728163072156,0.066665,61860.0,61859.0,0.4092111]
[1728163073370,0.066665,61860.0,61859.0,0.3608]
[1728163073954,0.068665,61860.0,61859.0,0.3608]
[1728163074362,0.068665,61860.0,61858.0,0.0484111]
[1728163074363,0.004,61860.0,61858.0,0.0484111]
[1728163074558,0.174666,61859.0,61858.0,0.0484111]
[1728163074959,0.064667,61858.0,61857.0,0.0484111]
[1728163075363,0.064671,61854.0,61853.0,0.02843298]
[1728163075667,0.064671,61854.0,61851.0,0.064674]
[1728163075867,0.11,61852.0,61851.0,0.064674]
[1728163076858,0.11,61852.0,61850.0,0.0313]
[1728163076859,0.174674,61852.0,61850.0,0.0313]
[1728163077657,0.180674,61852.0,61850.0,0.0313]
[1728163077964,0.064675,61851.0,61849.0,0.3608]
[1728163078662,0.12,61852.0,61849.0,0.3608]
[1728163078862,0.064675,61850.0,61849.0,0.3608]
[1728163079770,0.064675,61850.0,61849.0,0.38949429]
[1728163080066,0.064677,61848.0,61847.0,0.00242488]
[1728163080266,0.174677,61848.0,61847.0,0.00242488]
[1728163081163,0.174677,61848.0,61847.0,0.03185014]
[1728163081372,0.176677,61848.0,61847.0,0.00242488]
[1728163082862,0.178677,61848.0,61847.0,0.00242488]
[1728163083466,0.178677,61848.0,61847.0,0.05077903]
[1728163085267,0.178677,61848.0,61847.0,0.00242488]
[1728163093383,0.178677,61848.0,61847.0,0.05077903]
[1728163097183,0.178677,61848.0,61843.0,0.02875836]
[1728163097184,1.263757,61848.0,61842.0,0.0151]
[1728163097478,1.263757,61848.0,61839.0,0.0151]
[1728163097479,0.064683,61843.0,61839.0,0.0151]
[1728163097687,0.064683,61843.0,61835.0,0.0151]
[1728163097688,0.11,61838.0,61835.0,0.0151]
[1728163097873,0.064683,61843.0,61834.0,0.0307]
[1728163097874,0.064691,61835.0,61834.0,0.0307]
[1728163098577,0.064691,61835.0,61834.0,0.05966386]
[1728163099877,0.070691,61835.0,61834.0,0.05966386]
[1728163100074,0.006,61835.0,61830.0,0.0329]
[1728163100284,0.174693,61833.0,61830.0,0.0329]
[1728163100888,0.064693,61833.0,61830.0,0.06266467]
[1728163101078,0.006,61835.0,61834.0,0.064692]
[1728163101382,0.008,61835.0,61834.0,0.064692]
[1728163101983,0.0038,61843.0,61833.0,0.0322]
[1728163102191,0.064682,61844.0,61840.0,0.11]
[1728163102485,0.064682,61844.0,61841.0,0.0312]
[1728163104289,0.077682,61844.0,61841.0,0.0312]
[1728163105198,0.090682,61844.0,61841.0,0.0312]
[1728163106194,0.11,61843.0,61841.0,0.0312]
[1728163107295,0.123,61843.0,61841.0,0.11190035]
[1728163108001,0.08254431,61843.0,61841.0,0.11190035]
[1728163108302,0.09554431,61843.0,61841.0,0.14170967]
[1728163108789,0.026,61843.0,61841.0,0.20639467]
[1728163109100,0.026,61843.0,61842.0,0.29318603]
[1728163109307,0.026,61843.0,61842.0,0.32478603]
[1728163109607,0.026,61843.0,61842.0,0.42185229]
[1728163110503,0.027,61843.0,61842.0,0.42185229]
[1728163111095,0.027,61843.0,61842.0,0.32478603]
[1728163111299,0.028,61843.0,61842.0,0.42185229]
[1728163111603,0.00242596,61848.0,61843.0,0.064682]
[1728163111907,0.00242596,61848.0,61845.0,0.09682758]
[1728163112197,0.00242596,61848.0,61846.0,0.21532961]
[1728163112400,0.00242596,61848.0,61845.0,0.0806834]
[1728163113099,0.01642596,61848.0,61844.0,0.0806834]
[1728163113302,0.01642596,61848.0,61845.0,0.19864121]
[1728163113495,0.03042596,61848.0,61846.0,0.0806834]
[1728163113695,0.03042596,61848.0,61847.0,0.1453614]
[1728163113995,0.03042596,61848.0,61847.0,0.18257703]
[1728163114701,0.01642596,61848.0,61847.0,0.18257703]
[1728163115006,0.03042596,61848.0,61847.0,0.18257703]
[1728163115304,0.01842596,61848.0,61847.0,0.18357703]
[1728163115602,0.00642596,61848.0,61847.0,0.26518803]
[1728163117994,0.00642596,61848.0,61847.0,0.62598803]
[1728163118194,0.00642596,61848.0,61847.0,0.147289]
[1728163118404,0.00642596,61848.0,61847.0,0.508089]
[1728163119297,0.00642596,61848.0,61847.0,0.427478]
[1728163120693,0.00642596,61848.0,61847.0,0.066678]
[1728163121008,0.00642596,61848.0,61847.0,0.427478]
[1728163122198,0.00642596,61848.0,61847.0,0.066678]
[1728163122512,0.00642596,61848.0,61847.0,0.427478]
[1728163122695,0.00642596,61848.0,61847.0,0.066678]
[1728163122897,0.00642596,61848.0,61847.0,0.427478]
[1728163125099,0.00642596,61848.0,61847.0,0.066678]
[1728163125294,0.00642596,61848.0,61847.0,0.427478]
[1728163125993,0.00642596,61848.0,61847.0,0.066678]
[1728163126411,0.00642596,61848.0,61847.0,0.427478]
[1728163130197,0.00642596,61848.0,61847.0,0.066678]
[1728163130398,0.00642596,61848.0,61847.0,0.427478]
[1728163131006,0.00642596,61848.0,61847.0,0.066678]
[1728163131407,0.00642596,61848.0,61847.0,0.427478]
[1728163139516,0.004,61848.0,61847.0,0.427478]
[1728163141717,0.004,61848.0,61840.0,0.05726641]
[1728163141914,0.004,61848.0,61847.0,0.064678]
[1728163142617,0.004,61848.0,61847.0,0.18273108]
[1728163142818,0.002,61848.0,61847.0,0.32337291]
[1728163143007,0.013,61848.0,61847.0,0.32337291]
[1728163143211,0.022,61848.0,61847.0,0.32337291]
[1728163143624,0.011,61848.0,61847.0,0.32337291]
[1728163143817,0.025,61848.0,61847.0,0.32437291]
[1728163145218,0.028,61848.0,61847.0,0.32537291]
[1728163145415,0.028,61848.0,61847.0,0.43537291]
[1728163149419,0.028,61848.0,61847.0,1.52045291]
[1728163149627,0.028,61848.0,61847.0,1.54920066]
[1728163149813,0.72244,61850.0,61849.0,0.064676]
[1728163150015,0.7216,61850.0,61849.0,0.32337091]
[1728163150719,0.7216,61850.0,61849.0,1.17499408]
[1728163150912,0.3646,61857.0,61856.0,0.064669]
[1728163151114,0.3608,61857.0,61856.0,0.174669]
[1728163151733,0.3608,61857.0,61856.0,0.19994427]
[1728163152026,0.3608,61857.0,61856.0,0.24038265]
[1728163152315,0.3608,61857.0,61856.0,0.14438157]
[1728163152548,0.3608,61857.0,61856.0,0.25438157]
[1728163152907,0.3608,61857.0,61856.0,0.24038157]
[1728163153112,0.3638,61857.0,61856.0,0.24138157]
[1728163153317,0.3638,61857.0,61856.0,0.20094427]
[1728163153524,0.3638,61857.0,61856.0,0.21494427]
[1728163154213,0.0038,61865.0,61856.0,1.29994427]
[1728163154418,0.3608,61871.0,61856.0,1.29994427]
[1728163154419,0.0038,61868.0,61867.0,0.064658]
[1728163154719,0.3608,61871.0,61869.0,0.11]
[1728163154914,0.3608,61871.0,61869.0,0.174655]
[1728163155110,0.3608,61871.0,61870.0,0.064654]
[1728163157618,0.3608,61871.0,61870.0,0.078654]
[1728163158635,0.3608,61871.0,61870.0,0.092654]
[1728163160018,0.3608,61871.0,61870.0,0.12109604]
[1728163165731,0.32036807,61871.0,61870.0,0.12109604]
[1728163167030,0.0657,61873.0,61870.0,0.05644204]
[1728163167332,0.0657,61873.0,61872.0,0.174652]
[1728163167526,0.4265,61873.0,61872.0,0.174652]
[1728163168027,0.0657,61873.0,61872.0,0.174652]
[1728163168233,0.4265,61873.0,61872.0,0.174652]
[1728163170135,0.0657,61873.0,61872.0,0.174652]
[1728163170337,0.4265,61873.0,61872.0,0.188652]
[1728163171228,0.4265,61873.0,61872.0,0.202652]
[1728163171430,0.0657,61873.0,61872.0,0.202652]
[1728163175228,0.0325,61873.0,61872.0,0.202652]
[1728163181141,0.0038,61878.0,61877.0,0.064647]
[1728163181448,0.3929,61880.0,61879.0,0.064645]
[1728163183948,0.033,61885.0,61879.0,0.064645]
[1728163183949,0.033,61885.0,61879.0,0.014]
[1728163184249,0.033,61885.0,61884.0,0.17464]
[1728163185651,0.033,61885.0,61884.0,0.18864]
[1728163186350,0.033,61885.0,61884.0,0.20264]
[1728163188552,0.033,61885.0,61884.0,0.18864]
[1728163188755,0.033,61885.0,61884.0,0.20264]
[1728163188942,0.0038,61890.0,61884.0,0.138]
[1728163189140,0.3646,61893.0,61892.0,0.064631]
[1728163189339,0.3608,61893.0,61892.0,0.174631]
[1728163190141,0.0937,61899.0,61892.0,0.11]
[1728163190338,0.0937,61899.0,61898.0,0.174625]
[1728163192047,0.0937,61899.0,61898.0,0.188625]
[1728163192754,0.0937,61899.0,61898.0,0.124]
[1728163193656,0.0937,61899.0,61898.0,0.137]
[1728163193855,0.0937,61899.0,61898.0,0.201625]
[1728163196549,0.0612,61899.0,61898.0,0.201625]
[1728163197653,0.0612,61899.0,61898.0,0.188625]
[1728163198154,0.0612,61899.0,61898.0,0.202625]
[1728163201461,0.422,61899.0,61898.0,0.202625]
[1728163209755,0.3912,61899.0,61898.0,0.202625]
[1728163209961,0.42240276,61899.0,61898.0,0.202625]
[1728163210269,0.03120276,61899.0,61898.0,0.202625]
[1728163212265,0.0332,61905.0,61898.0,0.202625]
[1728163212266,0.0332,61905.0,61903.0,0.064619]
[1728163212463,0.0312015,61904.0,61903.0,0.064619]
[1728163212659,0.0312015,61904.0,61903.0,0.174619]
[1728163213970,0.07075737,61904.0,61903.0,0.174619]
[1728163214171,0.07075737,61904.0,61903.0,0.188619]
[1728163214762,0.07075737,61904.0,61903.0,0.202619]
[1728163217558,0.07075737,61904.0,61903.0,0.23156966]
[1728163217963,0.0332,61905.0,61904.0,0.064619]
[1728163219767,0.0332,61905.0,61904.0,0.078619]
[1728163220971,0.0332,61905.0,61904.0,0.092619]
[1728163221272,0.394,61905.0,61904.0,0.092619]
[1728163222979,0.0332,61905.0,61904.0,0.092619]
[1728163223171,0.394,61905.0,61904.0,0.092619]
[1728163223676,0.0332,61905.0,61904.0,0.092619]
[1728163223866,0.394,61905.0,61904.0,0.092619]
[1728163224773,0.3608,61910.0,61909.0,0.064614]
[1728163224966,0.3608,61910.0,61909.0,0.174614]
[1728163224967,0.48113264,61910.0,61909.0,0.174614]
[1728163225470,0.03120044,61910.0,61909.0,0.174614]